fUSD/lending_fUSD_20240427
["ID","MTS","AMOUNT","RATE_DAILY","PERIOD"]
[323733177,1714218632980,-500.0,0.00011128,2]
[323733178,1714218632989,-504.31228408,0.00011128,2]
[323733179,1714218632998,-500.0,0.00011128,2]
[323733180,1714218633007,-500.0,0.00011128,2]
[323733181,1714218633018,-500.0,0.00011128,2]
[323733182,1714218633028,-503.61661331,0.00011128,2]
[323733183,1714218633038,-500.0,0.00011128,2]
[323733184,1714218633048,-500.0,0.00011128,2]
[323733185,1714218633058,-439.4160364,0.00011128,2]
[323733186,1714218633069,-500.0,0.00011128,2]
[323733187,1714218633080,-500.0,0.00011128,2]
[323733188,1714218633089,-500.0,0.00011128,2]
[323733189,1714218633099,-500.0,0.00011128,2]
[323733190,1714218633109,-586.08214952,0.00011128,2]
[323733191,1714218633119,-500.0,0.00011128,2]
[323733192,1714218633129,-500.0,0.00011128,2]
[323733193,1714218633138,-506.56758124,0.00011128,2]
[323733194,1714218633148,-500.0,0.00011128,2]
[323733195,1714218633159,-500.0,0.00011128,2]
[323733196,1714218633170,-551.35,0.00011128,2]
[323733197,1714218633180,-897.01,0.00011128,2]
[323733198,1714218633190,-500.0,0.00011128,2]
[323733199,1714218633200,-500.0,0.00011128,2]
[323733200,1714218633209,-500.0,0.00011128,2]
[323733201,1714218633220,-500.0,0.00011128,2]
[323733202,1714218633230,-500.0,0.00011128,2]
[323733203,1714218633240,-500.0,0.00011128,2]
[323733204,1714218633249,-639.86,0.00011128,2]
[323733205,1714218633258,-500.0,0.00011128,2]
[323733206,1714218633268,-500.0,0.00011128,2]
[323733207,1714218633278,-500.0,0.00011128,2]
[323733208,1714218633287,-500.0,0.00011128,2]
[323733209,1714218633298,-646.6962572,0.00011128,2]
[323733210,1714218633308,-500.0,0.00011128,2]
[323733211,1714218633319,-628.14,0.00011128,2]
[323733212,1714218633329,-500.0,0.00011128,2]
[323733213,1714218633338,-500.0,0.00011128,2]
[323733214,1714218633348,-150.0,0.00011128,2]
[323733215,1714218633357,-500.0,0.00011128,2]
[323733216,1714218633366,-500.0,0.00011128,2]
[323733217,1714218633376,-543.06567432,0.00011128,2]
[323733218,1714218633386,-500.0,0.00011128,2]
[323733219,1714218633395,-500.0,0.00011128,2]
[323733220,1714218633406,-500.0,0.00011128,2]
[323733221,1714218633416,-500.0,0.00011128,2]
[323733222,1714218633426,-500.0,0.00011128,2]
[323733223,1714218633437,-514.13339924,0.00011128,2]
[323733224,1714218633447,-500.0,0.00011128,2]
[323733225,1714218633456,-500.0,0.00011128,2]
[323733226,1714218633465,-500.0,0.00011128,2]
[323733227,1714218633474,-500.0,0.00011128,2]
[323733228,1714218633483,-500.0,0.00011128,2]
[323733229,1714218633492,-500.0,0.00011128,2]
[323733230,1714218633502,-500.0,0.00011128,2]
[323733231,1714218633512,-297.98277732,0.00011128,2]
[323733232,1714218633521,-500.0,0.00011128,2]
[323733233,1714218633530,-583.60377869,0.00011128,2]
[323733234,1714218633539,-500.0,0.00011128,2]
[323733235,1714218633549,-500.0,0.00011128,2]
[323733236,1714218633558,-500.0,0.00011128,2]
[323733237,1714218633567,-500.0,0.00011128,2]
[323733238,1714218633576,-500.0,0.00011128,2]
[323733239,1714218633585,-500.0,0.00011128,2]
[323733240,1714218633595,-618.90849093,0.00011128,2]
[323733241,1714218633605,-479.15,0.00011128,2]
[323733242,1714218633615,-500.0,0.00011128,2]
[323733243,1714218633626,-500.0,0.00011128,2]
[323733244,1714218633634,-365.15484592,0.00011128,2]
[323733245,1714218633644,-500.0,0.00011128,2]
[323733246,1714218633653,-500.0,0.00011128,2]
[323733247,1714218633662,-500.0,0.00011128,2]
[323733248,1714218633671,-500.0,0.00011128,2]
[323733249,1714218633683,-500.0,0.00011128,2]
[323733250,1714218633693,-500.0,0.00011128,2]
[323733251,1714218633702,-500.0,0.00011128,2]
[323733252,1714218633711,-500.0,0.00011128,2]
[323733253,1714218633719,-500.0,0.00011128,2]
[323733254,1714218633729,-6910.8,0.00011128,2]
[323733255,1714218633738,-500.0,0.00011128,2]
[323733256,1714218633747,-500.0,0.00011128,2]
[323733257,1714218633756,-500.0,0.00011128,2]
[323733258,1714218633765,-500.0,0.00011128,2]
[323733259,1714218633774,-500.0,0.00011128,2]
[323733260,1714218633783,-150.43829457,0.00011128,2]
[323733261,1714218633792,-500.0,0.00011128,2]
[323733262,1714218633801,-999.49,0.00011128,2]
[323733263,1714218633811,-500.0,0.00011128,2]
[323733264,1714218633821,-500.0,0.00011128,2]
[323733265,1714218633830,-557.75,0.00011128,2]
[323733266,1714218633839,-500.0,0.00011128,2]
[323733267,1714218633850,-868.76,0.00011128,2]
[323733268,1714218633860,-9264.64,0.00011128,2]
[323733269,1714218633869,-500.0,0.00011128,2]
[323733270,1714218633878,-500.0,0.00011128,2]
[323733271,1714218633887,-190.88,0.00011128,2]
[323733272,1714218633896,-500.0,0.00011128,2]
[323733273,1714218633905,-500.0,0.00011128,2]
[323733274,1714218633914,-514.34,0.00011128,2]
[323733275,1714218633923,-638.59,0.00011128,2]
[323733276,1714218633936,-500.0,0.00011128,2]
[323733277,1714218633946,-500.0,0.00011128,2]
[323733278,1714218633955,-519.7,0.00011128,2]
[323733279,1714218633964,-642.04,0.00011128,2]
[323733280,1714218633973,-500.0,0.00011128,2]
[323733281,1714218633982,-1047.65,0.00011128,2]
[323733282,1714218633991,-352.40420208,0.00011128,2]
[323733283,1714218634000,-500.0,0.00011128,2]
[323733284,1714218634009,-609.88,0.00011128,2]
[323733285,1714218634018,-500.0,0.00011128,2]
[323733286,1714218634027,-500.0,0.00011128,2]
[323733287,1714218634036,-631.51,0.00011128,2]
[323733288,1714218634045,-500.0,0.00011128,2]
[323733289,1714218634054,-857.36,0.00011128,2]
[323733290,1714218634063,-512.87,0.00011128,2]
[323733291,1714218634074,-500.0,0.00011128,2]
[323733292,1714218634086,-500.0,0.00011128,2]
[323733293,1714218634095,-500.0,0.00011128,2]
[323733294,1714218634104,-412.44,0.00011128,2]
[323733295,1714218634114,-500.0,0.00011128,2]
[323733296,1714218634124,-500.0,0.00011128,2]
[323733297,1714218634133,-500.0,0.00011128,2]
[323733298,1714218634142,-500.0,0.00011128,2]
[323733299,1714218634151,-1442.03,0.00011128,2]
[323733300,1714218634161,-565.87,0.00011128,2]
[323733301,1714218634170,-500.0,0.00011128,2]
[323733302,1714218634182,-821.25,0.00011128,2]
[323733303,1714218634191,-500.0,0.00011128,2]
[323733304,1714218634201,-535.54,0.00011128,2]
[323733305,1714218634210,-500.0,0.00011128,2]
[323733306,1714218634219,-500.0,0.00011128,2]
[323733307,1714218634229,-1554.07,0.00011128,2]
[323733308,1714218634238,-500.0,0.00011128,2]
[323733309,1714218634248,-500.0,0.00011128,2]
[323733310,1714218634257,-500.0,0.00011128,2]
[323733311,1714218634266,-500.0,0.00011128,2]
[323733312,1714218634275,-500.0,0.00011128,2]
[323733313,1714218634284,-500.0,0.00011128,2]
[323733314,1714218634293,-533.96,0.00011128,2]
[323733315,1714218634302,-500.0,0.00011128,2]
[323733316,1714218634311,-500.0,0.00011128,2]
[323733317,1714218634320,-500.0,0.00011128,2]
[323733318,1714218634329,-500.0,0.00011128,2]
[323733319,1714218634348,-500.0,0.00011128,2]
[323733320,1714218634357,-500.0,0.00011128,2]
[323733321,1714218634366,-890.2,0.00011128,2]
[323733322,1714218634375,-500.0,0.00011128,2]
[323733323,1714218634385,-505.58,0.00011128,2]
[323733324,1714218634394,-500.0,0.00011128,2]
[323733325,1714218634403,-500.0,0.00011128,2]
[323733326,1714218634413,-500.0,0.00011128,2]
[323733327,1714218634422,-500.0,0.00011128,2]
[323733328,1714218634433,-500.0,0.00011128,2]
[323733329,1714218634442,-500.0,0.00011128,2]
[323733330,1714218634451,-500.0,0.00011128,2]
[323733331,1714218634459,-921.41,0.00011128,2]
[323733332,1714218634469,-1152.67,0.00011128,2]
[323733333,1714218634479,-723.11,0.00011128,2]
[323733334,1714218634489,-500.0,0.00011128,2]
[323733335,1714218634500,-602.07,0.00011128,2]
[323733336,1714218634510,-500.0,0.00011128,2]
[323733337,1714218634520,-500.0,0.00011128,2]
[323733338,1714218634529,-514.0040356,0.00011128,2]
[323733339,1714218634538,-500.0,0.00011128,2]
[323733340,1714218634548,-500.0,0.00011128,2]
[323733341,1714218634557,-500.0,0.00011128,2]
[323733342,1714218634567,-500.0,0.00011128,2]
[323733343,1714218634576,-500.0,0.00011128,2]
[323733344,1714218634585,-500.0,0.00011128,2]
[323733345,1714218634594,-545.42,0.00011128,2]
[323733346,1714218634603,-545.42,0.00011128,2]
[323733347,1714218634612,-545.42,0.00011128,2]
[323733348,1714218634622,-545.42,0.00011128,2]
[323733349,1714218634631,-545.42,0.00011128,2]
[323733350,1714218634640,-545.42,0.00011128,2]
[323733351,1714218634649,-545.42,0.00011128,2]
[323733352,1714218634658,-545.42,0.00011128,2]
[323733353,1714218634667,-545.42,0.00011128,2]
[323733354,1714218634676,-500.0,0.00011128,2]
[323733355,1714218634688,-513.06,0.00011128,2]
[323733356,1714218634697,-545.42,0.00011128,2]
[323733357,1714218634706,-845.88,0.00011128,2]
[323733358,1714218634905,-545.42,0.00011128,2]
[323733359,1714218634915,-545.42,0.00011128,2]
[323733360,1714218634924,-545.42,0.00011128,2]
[323733361,1714218634935,-545.42,0.00011128,2]
[323733362,1714218634944,-545.42,0.00011128,2]
[323733363,1714218634953,-602.04959192,0.00011128,2]
[323733364,1714218634969,-328.95040808,0.00011128,2]
[323733365,1714218634978,-545.42,0.00011128,2]
[323733366,1714218634987,-545.42,0.00011128,2]
[323733367,1714218634996,-545.42,0.00011128,2]
[323733368,1714218635006,-545.42,0.00011128,2]
[323733369,1714218635015,-500.0,0.00011128,2]
[323733370,1714218635024,-545.42,0.00011128,2]
[323733371,1714218635033,-545.42,0.00011128,2]
[323733372,1714218635043,-545.42,0.00011128,2]
[323733373,1714218635052,-500.0,0.00011128,2]
[323733374,1714218635061,-545.42,0.00011128,2]
[323733375,1714218635072,-545.62,0.00011128,2]
[323733376,1714218635083,-500.0,0.00011128,2]
[323733377,1714218635093,-500.0,0.00011128,2]
[323733378,1714218635103,-500.0,0.00011128,2]
[323733379,1714218635112,-500.0,0.00011128,2]
[323733380,1714218635122,-473.12998539,0.00011128,2]
[323733381,1714218635131,-500.0,0.00011128,2]
[323733382,1714218635141,-500.0,0.00011128,2]
[323733383,1714218635152,-500.0,0.00011128,2]
[323733384,1714218635162,-333.8,0.00011128,2]
[323733385,1714218635171,-1553.4,0.00011128,2]
[323733386,1714218635182,-500.0,0.00011128,2]
[323733387,1714218635191,-1234.38,0.00011128,2]
[323733388,1714218635201,-500.0,0.00011128,2]
[323733389,1714218635210,-500.0,0.00011128,2]
[323733390,1714218635220,-1960.13,0.00011128,2]
[323733391,1714218635230,-500.0,0.00011128,2]
[323733392,1714218635239,-2214.74,0.00011128,2]
[323733393,1714218635249,-2698.1,0.00011128,2]
[323733394,1714218635258,-2004.2,0.00011128,2]
[323733395,1714218635268,-500.0,0.00011128,2]
[323733396,1714218635277,-500.0,0.00011128,2]
[323733397,1714218635287,-500.0,0.00011128,2]
[323733398,1714218635296,-500.0,0.00011128,2]
[323733399,1714218635306,-621.56,0.00011128,2]
[323733400,1714218635315,-597.71,0.00011128,2]
[323733401,1714218635326,-500.0,0.00011128,2]
[323733402,1714218635335,-1136.99,0.00011128,2]
[323733403,1714218635345,-807.58,0.00011128,2]
[323733404,1714218635355,-533.82,0.00011128,2]
[323733405,1714218635365,-500.0,0.00011128,2]
[323733406,1714218635374,-500.0,0.00011128,2]
[323733407,1714218635384,-500.0,0.00011128,2]
[323733408,1714218635393,-518.09,0.00011128,2]
[323733409,1714218635403,-500.0,0.00011128,2]
[323733410,1714218635412,-500.0,0.00011128,2]
[323733411,1714218635421,-500.0,0.00011128,2]
[323733412,1714218635432,-500.0,0.00011128,2]
[323733413,1714218635442,-1193.88,0.00011128,2]
[323733414,1714218635451,-500.0,0.00011128,2]
[323733415,1714218635460,-500.0,0.00011128,2]
[323733416,1714218635470,-956.29,0.00011128,2]
[323733417,1714218635479,-1997.87,0.00011128,2]
[323733418,1714218635489,-522.62,0.00011128,2]
[323733419,1714218635498,-571.59,0.00011128,2]
[323733420,1714218635507,-500.0,0.00011128,2]
[323733421,1714218635517,-897.38,0.00011128,2]
[323733422,1714218635526,-355.17,0.00011128,2]
[323733423,1714218635535,-1310.38,0.00011128,2]
[323733424,1714218635545,-500.0,0.00011128,2]
[323733425,1714218635554,-500.0,0.00011128,2]
[323733426,1714218635563,-500.0,0.00011128,2]
[323733427,1714218635573,-2107.43,0.00011128,2]
[323733428,1714218635583,-500.0,0.00011128,2]
[323733429,1714218635592,-500.0,0.00011128,2]
[323733430,1714218635601,-500.0,0.00011128,2]
[323733431,1714218635611,-500.0,0.00011128,2]
[323733432,1714218635621,-500.0,0.00011128,2]
[323733433,1714218635630,-500.0,0.00011128,2]
[323733434,1714218635640,-3924.91,0.00011128,2]
[323733435,1714218635650,-500.0,0.00011128,2]
[323733436,1714218635659,-500.0,0.00011128,2]
[323733437,1714218635668,-500.0,0.00011128,2]
[323733438,1714218635677,-468.7572998,0.00011128,2]
[323733439,1714218635689,-500.0,0.00011128,2]
[323733440,1714218635698,-500.0,0.00011128,2]
[323733441,1714218635707,-500.0,0.00011128,2]
[323733442,1714218635715,-500.0,0.00011128,2]
[323733443,1714218635725,-500.0,0.00011128,2]
[323733444,1714218635734,-500.0,0.00011128,2]
[323733445,1714218635743,-500.0,0.00011128,2]
[323733446,1714218635753,-1510.47232821,0.00011128,2]
[323733447,1714218635762,-252.76358006,0.00011128,2]
[323733448,1714218635771,-239440.9827,0.00011129,2]
[323733449,1714218635780,-20551.6417,0.00011129,2]
[323733450,1714218635790,-4283.7097811,0.0001113,2]
[323733451,1714218635799,-192.085521,0.0001113,2]
[323733452,1714218635808,-151.0,0.0001113,2]
[323733453,1714218635818,-151.0,0.0001113,2]
[323733454,1714218635827,-18632.48266597,0.00011131,2]
[323733485,1714218638361,-500.0,0.00011128,2]
[323733486,1714218638371,-2108.70054198,0.00011131,2]
[323733487,1714218638388,-163940.08626136,0.00011131,2]
[323733488,1714218638399,-2022.81688463,0.00011131,2]
[323733489,1714218638410,-20045.1978705,0.00011131,2]
[323733495,1714218639920,-480.64653741,0.00011128,2]
[323733496,1714218640019,-131.33346259,0.00011128,2]
[323733497,1714218640029,-500.0,0.00011128,2]
[323733498,1714218640038,-15206.93149717,0.00011131,2]
[323733499,1714218640128,-500.6643648,0.00011131,2]
[323733500,1714218640184,-1352.377572,0.00011131,2]
[323733501,1714218640240,-29028.315582,0.00011131,2]
[323733502,1714218640253,-46081.00359907,0.00011131,2]
[323733504,1714218640351,-1574.593,0.00011131,2]
[323733505,1714218640363,-416.14855017,0.00011131,2]
[323733506,1714218640374,-422.28162964,0.00011131,2]
[323733511,1714218642999,-500.0,0.00011128,2]
[323733512,1714218643010,-500.0,0.00011128,2]
[323733513,1714218643020,-316.2876755,0.00011128,2]
[323733514,1714218643029,-1749.82939912,0.00011131,2]
[323733526,1714218646045,-194.76373746,0.00011127,2]
[323733527,1714218646056,-832.56,0.00011128,2]
[323733528,1714218646065,-592.67256743,0.00011128,2]
[323733529,1714218646075,-505.14,0.00011128,2]
[323733530,1714218646086,-660.20609511,0.00011131,2]
[323733532,1714218646329,-889.14929002,0.00011131,2]
[323733538,1714218998025,-262.39512335,9.987e-05,2]
[323733539,1714218998355,-3082.06843787,9.988e-05,2]
[323733540,1714218998379,-655.53643878,9.989e-05,2]
[323733541,1714219003303,-405.66817529,9.989e-05,2]
[323733542,1714219003325,-155.0,9.989e-05,2]
[323733543,1714219003348,-1618.42,9.99e-05,2]
[323733544,1714219003370,-155.0,0.0001,2]
[323733545,1714219016229,186.46,8.219e-05,2]
[323733546,1714219037452,-1373.33,0.0001063,10]
[323733548,1714219213930,-262.39512335,0.00010008,2]
[323733549,1714219213955,-177.93,0.00010009,2]
[323733550,1714219213977,-150.0,0.00010079,2]
[323733551,1714219213998,-3109.67487665,0.0001008,2]
[323733552,1714219271115,1258.88,0.0001063,10]
[323733553,1714219514043,177.13,8.219e-05,2]
[323733559,1714219582060,1302.32182471,9.88e-05,2]
[323733560,1714219582084,171.19817529,9.88e-05,2]
[323733577,1714219678220,630.27,9.907e-05,2]
[323733580,1714219717850,-1000.3158744,0.00010021,2]
[323733581,1714219717872,-200.0,0.00010022,2]
[323733582,1714219717896,-150.0,0.00010027,2]
[323733583,1714219717918,-3102.7841256,0.00010028,2]
[323733585,1714219743426,-7049.2,0.00010028,2]
[323733586,1714219765511,3198.53182471,9.969e-05,2]
[323733587,1714219765532,4000.0,9.969e-05,2]
[323733588,1714219765552,2694.82817529,9.969e-05,2]
[323733602,1714219772367,-2216.45947127,0.00010026,2]
[323733603,1714219772389,-619.09052873,0.00010027,2]
[323733604,1714219820060,1153.97,0.0001063,10]
[323733618,1714219832030,-298.84757904,0.00010027,2]
[323733619,1714219832040,-269.56133384,0.00010027,2]
[323733620,1714219832050,-25118.54503712,0.00010028,2]
[323733621,1714219832059,-171.97,0.00010031,2]
[323733622,1714219832069,-3634.0104,0.00010075,2]
[323733623,1714219832079,-1519.94932019,0.0001008,2]
[323733624,1714219832088,-164.58070269,0.00010084,2]
[323733625,1714219832097,-2356.43931281,0.00010085,2]
[323733626,1714219832106,-499.99,0.00010085,2]
[323733627,1714219832114,-164.47,0.00010132,2]
[323733628,1714219832123,-177.13,0.00010471,2]
[323733629,1714219832132,-10000.0,0.0001087,2]
[323733630,1714219832141,-155.0,0.000109,2]
[323733631,1714219832151,-150.0,0.00010919,2]
[323733632,1714219832160,-2500.0,0.0001093,2]
[323733633,1714219832169,-1500.0,0.00010947,2]
[323733634,1714219832179,-1500.0,0.00010966,2]
[323733635,1714219832188,-150.0,0.00010967,2]
[323733636,1714219832197,-150.0,0.00010968,2]
[323733637,1714219832206,-150.0,0.0001099,2]
[323733638,1714219832215,-1500.0,0.00010999,2]
[323733639,1714219832223,-2750.0,0.00011,3]
[323733640,1714219832235,-1500.0,0.00011004,2]
[323733641,1714219832244,-409.28203604,0.00011004,2]
[323733642,1714219832253,-150.0,0.00011007,2]
[323733643,1714219832262,-150.0,0.0001101,2]
[323733644,1714219832272,-189.30373502,0.0001102,2]
[323733645,1714219832281,-189.30373502,0.0001102,2]
[323733646,1714219832291,-150.0,0.00011027,2]
[323733647,1714219832299,-1000.0,0.00011027,2]
[323733648,1714219832309,-52271.9707,0.00011028,2]
[323733649,1714219832318,-11177.7439,0.00011028,2]
[323733650,1714219832327,-150.0,0.00011028,2]
[323733651,1714219832336,-684.39883243,0.00011028,2]
[323733652,1714219832346,-3542.01286038,0.00011028,2]
[323733653,1714219832355,-155.08295329,0.00011028,2]
[323733654,1714219832365,-155.0,0.00011028,2]
[323733655,1714219832374,-314.37779779,0.00011028,2]
[323733656,1714219832383,-167.40337534,0.00011028,2]
[323733657,1714219832393,-200.35068603,0.00011028,2]
[323733658,1714219832403,-155.16361916,0.00011028,2]
[323733659,1714219832412,-2360.54775782,0.00011028,2]
[323733661,1714219832425,-193.1365021,0.00011028,2]
[323733663,1714219832434,-2184.01445234,0.00011028,2]
[323733665,1714219832443,-2223.22963114,0.00011028,2]
[323733667,1714219832453,-155.0,0.00011028,2]
[323733668,1714219832463,-189.73207954,0.00011028,2]
[323733669,1714219832472,-532.89332388,0.00011029,2]
[323733670,1714219832483,-500.0,0.00011029,2]
[323733671,1714219832493,-500.0,0.00011029,2]
[323733672,1714219832505,-1179.84,0.00011029,2]
[323733673,1714219832514,-500.0,0.00011029,2]
[323733674,1714219832523,-500.0,0.00011029,2]
[323733675,1714219832532,-500.0,0.00011029,2]
[323733676,1714219832542,-500.0,0.00011029,2]
[323733677,1714219832551,-500.0,0.00011029,2]
[323733678,1714219832560,-500.0,0.00011029,2]
[323733680,1714219832569,-500.0,0.00011029,2]
[323733682,1714219832578,-500.0,0.00011029,2]
[323733683,1714219832588,-500.0,0.00011029,2]
[323733685,1714219832597,-2086.76,0.00011029,2]
[323733687,1714219832608,-1586.12,0.00011029,2]
[323733689,1714219832618,-500.0,0.00011029,2]
[323733691,1714219832627,-1110.45,0.00011029,2]
[323733693,1714219832636,-2287.59,0.00011029,2]
[323733695,1714219832646,-593.64,0.00011029,2]
[323733697,1714219832657,-549.46,0.00011029,2]
[323733699,1714219832667,-500.0,0.00011029,2]
[323733702,1714219832678,-500.0,0.00011029,2]
[323733704,1714219832689,-2015.48,0.00011029,2]
[323733705,1714219832699,-500.0,0.00011029,2]
[323733708,1714219832709,-500.0,0.00011029,2]
[323733710,1714219832719,-500.0,0.00011029,2]
[323733711,1714219832730,-500.0,0.00011029,2]
[323733712,1714219832740,-500.0,0.00011029,2]
[323733713,1714219832750,-500.0,0.00011029,2]
[323733714,1714219832761,-500.0,0.00011029,2]
[323733715,1714219832772,-500.0,0.00011029,2]
[323733716,1714219832782,-500.0,0.00011029,2]
[323733717,1714219832792,-637.4659865,0.00011029,2]
[323733718,1714219832802,-638.6,0.00011029,2]
[323733719,1714219832812,-500.0,0.00011029,2]
[323733720,1714219832822,-21529.14026613,0.0001103,2]
[323733721,1714219832835,-11759.36546175,0.0001103,2]
[323733722,1714219832872,-255.97559429,0.0001103,2]
[323733723,1714219832883,-3571.84322377,0.0001103,2]
[323733724,1714219832902,-448.74875887,0.0001103,2]
[323733725,1714219832914,-17525.46314143,0.0001103,2]
[323733726,1714219832942,-380.03426,0.0001103,2]
[323733727,1714219832955,-376.068,0.0001103,2]
[323733728,1714219832966,-333.00794755,0.0001103,2]
[323733729,1714219833002,-279.69657276,0.0001103,2]
[323733730,1714219833015,-1098.8377003,0.0001103,2]
[323733731,1714219833029,-909.80150932,0.0001103,2]
[323733750,1714219838081,-500.0,0.00011029,2]
[323733751,1714219838089,-1920.99494048,0.00011029,2]
[323733752,1714219838135,-5344.61505952,0.00011029,2]
[323733753,1714219838145,-500.0,0.00011029,2]
[323733754,1714219838154,-89263.99088129,0.0001103,2]
[323733755,1714219838191,-2456.13753328,0.0001103,2]
[323733756,1714219838300,-516.48938358,0.0001103,2]
[323733800,1714219840275,-1004.0,0.00011029,2]
[323733801,1714219840285,-3730.97784,0.0001103,2]
[323733802,1714219840296,-371.00681242,0.0001103,2]
[323733803,1714219840438,-1517249.4853868,0.0001103,2]
[323733804,1714219840448,-22102.1971,0.0001103,2]
[323733805,1714219840458,-428225.62056025,0.00011032,2]
[323733832,1714219843257,-5784.88528379,0.00011032,2]
[323733833,1714219843267,-36890.11471621,0.00011032,2]
[323733836,1714219846037,-587.80696654,0.00011029,2]
[323733837,1714219846047,-296.3730008,0.00011029,2]
[323733838,1714219846174,-203.6269992,0.00011029,2]
[323733839,1714219846183,-1025.05,0.00011029,2]
[323733840,1714219846192,-340.36824391,0.00011032,2]
[323733841,1714219846204,-1579.25,0.00011032,2]
[323733842,1714219846230,-2906.01149184,0.00011032,2]
[323733843,1714219983776,183.7,8.219e-05,2]
[323733844,1714220093241,200.0,9.973e-05,2]
[323733845,1714220117979,921.47182471,9.982e-05,2]
[323733846,1714220117999,138.23817529,9.982e-05,2]
[323733847,1714220186701,3861.76182471,9.986e-05,2]
[323733848,1714220186722,1138.23817529,9.986e-05,2]
[323733849,1714220199869,296.47,9.882e-05,2]
[323733850,1714220298437,166.21,9.865e-05,2]
[323733851,1714220353517,164.41,9.954e-05,2]
[323733852,1714220358397,1057.8,0.0001063,10]
[323733854,1714220474975,174.51,8.219e-05,2]
[323733855,1714220577063,706.14,9.844e-05,2]
[323733862,1714220757135,-206.86184835,9.988e-05,2]
[323733863,1714220757159,-3414.70545517,9.989e-05,2]
[323733864,1714220757183,-1061.20461407,9.989e-05,2]
[323733865,1714220757207,-155.0,9.99e-05,2]
[323733866,1714220757231,-1777.33405598,9.99e-05,2]
[323733867,1714220757254,-408.60896828,9.991e-05,2]
[323733868,1714220757277,-2322.6580486,9.991e-05,2]
[323733869,1714220757301,-4333.98132409,9.991e-05,2]
[323733870,1714220811902,-741.39,9.999e-05,2]
[323733871,1714220811926,-164.41,0.00010019,2]
[323733872,1714220811953,-183.93,0.00010074,2]
[323733873,1714220811978,-164.41,0.00010084,2]
[323733874,1714220812002,-164.41,0.00010149,2]
[323733875,1714220819013,164.41,0.00010098,2]
[323733882,1714220847152,-10872.24,0.00010214,2]
[323733895,1714221003735,969.65,0.0001063,10]
[323733919,1714221032217,-355.52000041,0.00010212,2]
[323733923,1714221032229,-689.30241408,0.00010212,2]
[323733926,1714221032240,-286.18192272,0.00010212,2]
[323733930,1714221032270,-300.4919233,0.00010212,2]
[323733931,1714221032282,-696.77431602,0.00010212,2]
[323733932,1714221032326,-1411.54365452,0.00010212,2]
[323733933,1714221032337,-387.51100691,0.00010212,2]
[323733934,1714221032349,-10168.66292307,0.00010212,2]
[323733935,1714221032358,-692.69076029,0.00010213,2]
[323733936,1714221032368,-11835.59,0.00010214,2]
[323733937,1714221032377,-298.84757904,0.00010214,2]
[323733938,1714221032387,-164.41,0.0001023,2]
[323733939,1714221032396,-499.99,0.00010279,2]
[323733940,1714221032406,-6906.96,0.00010279,2]
[323733941,1714221032416,-164.41,0.00010361,2]
[323733942,1714221032425,-174.51,0.00010469,2]
[323733943,1714221032434,-164.41,0.00010493,2]
[323733944,1714221032443,-164.41,0.00010624,2]
[323733945,1714221032453,-910.83,0.000107,2]
[323733946,1714221032462,-910.83,0.00010792,2]
[323733947,1714221032471,-1149.77,0.00010792,2]
[323733948,1714221032481,-150.0,0.00010849,2]
[323733949,1714221032490,-10000.0,0.0001087,2]